[Event "Schachfestival Open-A 2018"]
[Site "Lueneburg"]
[Date "2018.07.10"]
[Round "6"]
[White "Vorobiov, Evgeny E"]
[Black "Mirzoev, Azer"]
[Result "1/2-1/2"]
[ECO "D26"]
[WhiteElo "2564"]
[BlackElo "2506"]
[Annotator "ChessBase"]
[PlyCount "21"]
[EventDate "2018.07.06"]
[EventType "swiss"]
[EventCountry "GER"]
[SourceTitle "playchess.com"]
[Source "ChessBase"]
[SourceQuality "1"]
[TimeControl "40/5400+30:1800+30"]

1. d4 {[%emt 0:00:00]} d5 {[%emt 0:03:47]} 2. c4 {[%emt 0:00:00]} e6 {[%emt 0:00:08]} 3. Nf3 {[%emt 0:00:00]} c6 {[%emt 0:00:09]} 4. e3 {[%emt 0:00:27]} Nf6 {[%emt 0:00:06]} 5. Bd3 {[%emt 0:00:48]} dxc4 {[%emt 0:00:37]} 6. Bxc4 {[%emt 0:00:09]} c5 {[%emt 0:00:04]} 7. O-O {[%emt 0:00:51]} Nc6 {[%emt 0:00:07]} 8. Nc3 {[%emt 0:01:57]} a6 {[%emt 0:00:06]} 9. Qe2 {[%emt 0:02:47]} b5 {[%emt 0:02:18]} 10. Bb3 {[%emt 0:00:14]} Bb7 {[%emt 0:00:00]} 11. dxc5 {[%emt 0:13:17]} 1/2-1/2

[Event "Schachfestival Open-A 2018"]
[Site "Lueneburg"]
[Date "2018.07.10"]
[Round "6"]
[White "Sriram, Jha"]
[Black "Ramme, Christoph"]
[Result "1/2-1/2"]
[ECO "A14"]
[WhiteElo "2409"]
[BlackElo "2158"]
[Annotator "NA"]
[PlyCount "94"]
[EventDate "2018.07.06"]
[EventType "swiss"]
[EventCountry "GER"]
[SourceTitle "playchess.com"]
[Source "ChessBase"]
[SourceQuality "1"]
[TimeControl "40/5400+30:1800+30"]

1. Nf3 {[%emt 0:05:37]} Nf6 {[%emt 0:00:00]} 2. c4 {[%emt 0:01:01]} e6 {[%emt 0:00:08]} 3. g3 {[%emt 0:01:52]} d5 {[%emt 0:00:33]} 4. Bg2 {[%emt 0:00:14]} Be7 {[%emt 0:00:47]} 5. O-O {[%emt 0:00:40]} O-O {[%emt 0:00:39]} 6. d4 {[%emt 0:01:20]} dxc4 {[%emt 0:00:35]} 7. Qc2 {[%emt 0:00:32]} a6 {[%emt 0:01:02]} 8. a4 {[%emt 0:00:08]} Bd7 {[%emt 0:00:55]} 9. Qxc4 {[%emt 0:00:13]} Bc6 {[%emt 0:00:31]} 10. Bg5 {[%emt 0:00:26]} Bd5 {[%emt 0:03:34]} 11. Qd3 {[%emt 0:00:07]} c5 {[%emt 0:06:59]} 12. Nc3 {[%emt 0:09:45]} Bc6 {[%emt 0:03:48]} 13. Rfd1 {[%emt 0:14:28]} Nbd7 {[%emt 0:04:52]} 14. e4 {[%emt 0:03:11]} cxd4 {[%emt 0:07:08]} 15. Nxd4 {[%emt 0:02:21]} Ne5 {[%emt 0:21:43]} 16. Qe2 {[%emt 0:03:11]} Qb6 {[%emt 0:05:12]} 17. Bf4 {[%emt 0:14:02]} Ng6 {[%emt 0:03:12]} 18. Be3 {[%emt 0:08:19]} Qa5 {[%emt 0:06:00]} 19. Nxc6 {[%emt 0:03:21]} bxc6 {[%emt 0:00:08]} 20. Bd2 {[%emt 0:03:30]} Bb4 {[%emt 0:16:08]} 21. Be1 {[%emt 0:01:07]} Rfd8 {[%emt 0:02:23]} 22. Rxd8+ {[%emt 0:08:58]} Rxd8 {[%emt 0:00:09]} 23. Rd1 {[%emt 0:00:06]} Rxd1 {[%emt 0:01:22]} 24. Qxd1 {[%emt 0:00:03]} Qb6 {[%emt 0:01:07]} 25. Qe2 {[%emt 0:00:59]} a5 {[%emt 0:00:41]} 26. Kh1 {[%emt 0:01:20]} e5 {[%emt 0:05:06]} 27. f3 {[%emt 0:01:39]} Bc5 {[%emt 0:00:45]} 28. Nb1 {[%emt 0:05:49]} Ne8 {[%emt 0:02:15]} 29. Qd2 {[%emt 0:01:18]} Bb4 {[%emt 0:00:50]} 30. Bf2 {[%emt 0:00:15]} Bc5 {[%emt 0:02:00]} 31. Be1 {[%emt 0:00:35]} Bb4 {[%emt 0:00:01]} 32. Qf2 {[%emt 0:00:33]} Bc5 {[%emt 0:00:13]} 33. Qc2 {[%emt 0:00:21]} Nd6 {[%emt 0:01:06]} 34. Na3 {[%emt 0:02:05]} Bd4 {[%emt 0:00:55]} 35. b3 {[%emt 0:00:44]} Bc5 36. Nb1 {[%emt 0:02:02]} Ne8 {[%emt 0:01:42]} 37. Nd2 {[%emt 0:00:25]} Nd6 {[%emt 0:00:14]} 38. Bf1 {[%emt 0:02:03]} Bb4 {[%emt 0:01:09]} 39. Qd3 {[%emt 0:01:39]} Qc5 {[%emt 0:01:14]} 40. Nc4 {[%emt 0:02:32]} Bxe1 {[%emt 0:01:51]} 41. Qxd6 {[%emt 0:04:20]} Qf2 {[%emt 0:05:22]} 42. Qd8+ {[%emt 0:04:16]} Nf8 {[%emt 0:00:06]} 43. Qd3 {[%emt 0:00:03]} Bb4 {[%emt 0:06:54]} 44. Qe2 {[%emt 0:00:54]} Qd4 {[%emt 0:00:29]} 45. Qd3 {[%emt 0:03:39]} Qf2 {[%emt 0:00:57]} 46. Qe2 {[%emt 0:00:16]} Qd4 {[%emt 0:00:23]} 47. Qd3 {[%emt 0:06:20]} Qf2 {[%emt 0:00:31]} 1/2-1/2

[Event "Schachfestival Open-A 2018"]
[Site "Lueneburg"]
[Date "2018.07.10"]
[Round "6"]
[White "Hess, Christian Mathias"]
[Black "Marxen, Peter"]
[Result "1-0"]
[ECO "A06"]
[WhiteElo "2243"]
[BlackElo "2068"]
[Annotator "NA"]
[PlyCount "89"]
[EventDate "2018.07.06"]
[EventType "swiss"]
[EventCountry "GER"]
[SourceTitle "playchess.com"]
[Source "ChessBase"]
[SourceQuality "1"]
[TimeControl "40/5400+30:1800+30"]

1. Nf3 {[%emt 0:00:00]} d5 {[%emt 0:00:41]} 2. e3 {[%emt 0:04:51]} Nf6 {[%emt 0:00:47]} 3. c4 {[%emt 0:00:33]} e6 {[%emt 0:06:25]} 4. b3 {[%emt 0:02:08]} c5 {[%emt 0:04:22]} 5. Bb2 {[%emt 0:00:33]} Nc6 {[%emt 0:02:48]} 6. cxd5 {[%emt 0:01:01]} exd5 {[%emt 0:00:31]} 7. Bb5 {[%emt 0:00:35]} Be7 {[%emt 0:08:36]} 8. O-O {[%emt 0:02:52]} O-O {[%emt 0:00:15]} 9. d4 {[%emt 0:03:53]} Qb6 {[%emt 0:06:03]} 10. Bxc6 {[%emt 0:13:25]} Qxc6 {[%emt 0:05:15]} 11. dxc5 {[%emt 0:04:54]} Qxc5 {[%emt 0:00:44]} 12. Qd3 {[%emt 0:07:37]} Be6 {[%emt 0:07:41]} 13. Ng5 {[%emt 0:10:40]} g6 {[%emt 0:15:40]} 14. Rc1 {[%emt 0:01:59]} Qb6 {[%emt 0:02:51]} 15. Bd4 {[%emt 0:05:12]} Qd6 {[%emt 0:11:50]} 16. Nc3 {[%emt 0:18:00]} a6 {[%emt 0:07:43]} 17. Bxf6 {[%emt 0:02:52]} Bxf6 {[%emt 0:01:40]} 18. Nge4 {[%emt 0:00:15]} Qe7 {[%emt 0:01:49]} 19. Nxf6+ {[%emt 0:05:56]} Qxf6 {[%emt 0:00:02]} 20. Ne2 {[%emt 0:02:14]} Rfc8 {[%emt 0:03:50]} 21. Qd4 {[%emt 0:00:20]} Kg7 {[%emt 0:02:14]} 22. Kf1 {[%emt 0:02:05]} Qxd4 {[%emt 0:01:32]} 23. Nxd4 {[%emt 0:00:09]} Kf6 {[%emt 0:00:22]} 24. Ke2 {[%emt 0:00:22]} Rxc1 {[%emt 0:01:04]} 25. Rxc1 {[%emt 0:00:02]} Rc8 {[%emt 0:00:06]} 26. Rxc8 {[%emt 0:00:31]} Bxc8 27. Kd3 {[%emt 0:00:27]} h6 {[%emt 0:02:01]} 28. Nf3 {[%emt 0:03:27]} b6 {[%emt 0:03:33]} 29. Kd4 {[%emt 0:00:20]} Bb7 {[%emt 0:00:48]} 30. b4 {[%emt 0:01:19]} Ke6 {[%emt 0:00:18]} 31. h4 {[%emt 0:02:54]} f6 {[%emt 0:00:32]} 32. a4 {[%emt 0:00:48]} Bc6 {[%emt 0:00:58]} 33. a5 {[%emt 0:00:07]} bxa5 {[%emt 0:00:07]} 34. bxa5 {[%emt 0:00:02]} Bb5 {[%emt 0:00:43]} 35. Kc5 Bf1 {[%emt 0:02:03]} 36. g3 {[%emt 0:01:47]} g5 {[%emt 0:00:03]} 37. Nd2 {[%emt 0:01:03]} Be2 {[%emt 0:01:25]} 38. Nb3 {[%emt 0:01:05]} Bf1 {[%emt 0:00:20]} 39. hxg5 {[%emt 0:01:13]} hxg5 {[%emt 0:00:44]} 40. g4 {[%emt 0:01:22]} Ke5 {[%emt 0:00:22]} 41. f3 {[%emt 0:31:00]} Be2 {[%emt 0:08:35]} 42. Nd4 {[%emt 0:00:00]} Bf1 {[%emt 0:01:21]} 43. Kc6 {[%emt 0:00:00]} Bc4 {[%emt 0:01:33]} 44. Kd7 {[%emt 0:00:00]} f5 {[%emt 0:03:49]} 45. gxf5 {[%emt 0:00:00]} 1-0

[Event "Schachfestival Open-A 2018"]
[Site "Lueneburg"]
[Date "2018.07.10"]
[Round "6"]
[White "Kardoeus, David"]
[Black "Hoffmann, Lennard"]
[Result "1/2-1/2"]
[ECO "B99"]
[WhiteElo "2188"]
[BlackElo "1981"]
[Annotator "NA"]
[PlyCount "98"]
[EventDate "2018.07.06"]
[EventType "swiss"]
[EventCountry "GER"]
[SourceTitle "playchess.com"]
[Source "ChessBase"]
[SourceQuality "1"]
[TimeControl "40/5400+30:1800+30"]

1. e4 {[%emt 0:01:24]} c5 {[%emt 0:00:00]} 2. Nf3 {[%emt 0:00:13]} d6 {[%emt 0:00:00]} 3. d4 {[%emt 0:00:04]} cxd4 {[%emt 0:00:00]} 4. Nxd4 {[%emt 0:00:06]} Nf6 {[%emt 0:00:00]} 5. Nc3 {[%emt 0:00:06]} a6 {[%emt 0:00:00]} 6. Bg5 {[%emt 0:00:07]} e6 {[%emt 0:00:37]} 7. f4 {[%emt 0:00:10]} Be7 {[%emt 0:00:49]} 8. Qf3 {[%emt 0:00:08]} Qc7 {[%emt 0:00:22]} 9. O-O-O {[%emt 0:00:07]} Nbd7 {[%emt 0:00:39]} 10. g4 {[%emt 0:00:16]} h6 {[%emt 0:00:23]} 11. Bxf6 {[%emt 0:03:09]} Bxf6 {[%emt 0:00:23]} 12. h4 {[%emt 0:00:09]} Qb6 {[%emt 0:00:17]} 13. Nde2 {[%emt 0:00:08]} Nc5 {[%emt 0:00:28]} 14. g5 {[%emt 0:02:12]} Be7 {[%emt 0:00:30]} 15. Nd4 {[%emt 0:00:05]} Bd7 {[%emt 0:03:05]} 16. Bh3 {[%emt 0:01:19]} O-O-O {[%emt 0:05:34]} 17. f5 {[%emt 0:23:56]} hxg5 {[%emt 0:10:44]} 18. fxe6 {[%emt 0:00:48]} fxe6 {[%emt 0:01:17]} 19. Nxe6 {[%emt 0:05:07]} Nxe6 {[%emt 0:01:59]} 20. Nd5 {[%emt 0:01:50]} Qc5 {[%emt 0:03:38]} 21. b4 {[%emt 0:07:38]} Qa7 {[%emt 0:16:01]} 22. Bxe6 {[%emt 0:01:39]} Bf6 {[%emt 0:04:05]} 23. Bxd7+ {[%emt 0:00:41]} Rxd7 {[%emt 0:01:32]} 24. Nxf6 {[%emt 0:22:45]} gxf6 {[%emt 0:00:41]} 25. Qxf6 {[%emt 0:00:09]} Qe3+ {[%emt 0:03:21]} 26. Kb2 {[%emt 0:00:45]} Rxh4 {[%emt 0:02:14]} 27. Rxh4 {[%emt 0:01:26]} gxh4 {[%emt 0:00:07]} 28. Qxh4 {[%emt 0:00:40]} Qb6 {[%emt 0:08:33]} 29. Kb3 {[%emt 0:06:03]} Kb8 {[%emt 0:03:09]} 30. Qh8+ {[%emt 0:01:59]} Rd8 {[%emt 0:01:42]} 31. Qf6 {[%emt 0:02:30]} Re8 {[%emt 0:02:10]} 32. Rd4 {[%emt 0:06:11]} Ka7 {[%emt 0:09:19]} 33. c3 {[%emt 0:01:06]} Qc6 {[%emt 0:03:05]} 34. Rxd6 {[%emt 0:02:21]} Qxe4 {[%emt 0:00:50]} 35. Qd4+ {[%emt 0:00:05]} Qxd4 {[%emt 0:01:04]} 36. cxd4 {[%emt 0:00:02]} b5 {[%emt 0:02:04]} 37. Rc6 {[%emt 0:03:40]} Re3+ {[%emt 0:03:25]} 38. Rc3 {[%emt 0:00:01]} Re4 {[%emt 0:00:10]} 39. Rd3 {[%emt 0:00:30]} Kb7 {[%emt 0:00:23]} 40. a4 {[%emt 0:00:07]} Kc6 {[%emt 0:02:10]} 41. Kc3 {[%emt 0:36:16]} Re1 {[%emt 0:35:03]} 42. Rh3 {[%emt 0:01:38]} Rc1+ {[%emt 0:01:28]} 43. Kd3 {[%emt 0:00:00]} Rd1+ {[%emt 0:00:00]} 44. Ke4 {[%emt 0:00:00]} Re1+ {[%emt 0:00:00]} 45. Kd3 {[%emt 0:00:00]} Rd1+ {[%emt 0:00:00]} 46. Kc3 {[%emt 0:00:00]} Rc1+ {[%emt 0:00:00]} 47. Kb2 {[%emt 0:00:00]} Rc4 {[%emt 0:00:00]} 48. Rh6+ {[%emt 0:00:00]} Kb7 {[%emt 0:00:00]} 49. Kb3 {[%emt 0:00:00]} Rxd4 {[%emt 0:00:00]} 1/2-1/2

[Event "Schachfestival Open-A 2018"]
[Site "Lueneburg"]
[Date "2018.07.10"]
[Round "6"]
[White "Stabolewski, Andreas"]
[Black "Harringer, Manfred"]
[Result "0-1"]
[ECO "A14"]
[WhiteElo "2129"]
[BlackElo "1998"]
[Annotator "NA"]
[PlyCount "126"]
[EventDate "2018.07.06"]
[EventType "swiss"]
[EventCountry "GER"]
[SourceTitle "playchess.com"]
[Source "ChessBase"]
[SourceQuality "1"]
[TimeControl "40/5400+30:1800+30"]

1. c4 {[%emt 0:00:00]} Nf6 {[%emt 0:00:00]} 2. g3 {[%emt 0:00:22]} e6 {[%emt 0:00:00]} 3. Bg2 {[%emt 0:00:19]} d5 {[%emt 0:00:00]} 4. Nf3 {[%emt 0:00:44]} Be7 {[%emt 0:04:14]} 5. O-O {[%emt 0:00:21]} O-O {[%emt 0:00:04]} 6. b3 {[%emt 0:01:08]} c5 {[%emt 0:01:07]} 7. Bb2 {[%emt 0:00:30]} Nc6 {[%emt 0:00:08]} 8. e3 {[%emt 0:01:27]} b6 {[%emt 0:07:32]} 9. Nc3 {[%emt 0:00:36]} Bb7 {[%emt 0:00:37]} 10. cxd5 {[%emt 0:01:33]} exd5 {[%emt 0:03:55]} 11. d4 {[%emt 0:00:36]} Rc8 {[%emt 0:03:11]} 12. Rc1 {[%emt 0:04:49]} Ba6 {[%emt 0:09:59]} 13. Re1 {[%emt 0:00:51]} Nb4 {[%emt 0:06:01]} 14. Ne5 {[%emt 0:12:24]} cxd4 {[%emt 0:05:44]} 15. Qxd4 {[%emt 0:08:25]} Bc5 {[%emt 0:07:14]} 16. Qh4 {[%emt 0:02:08]} d4 {[%emt 0:06:23]} 17. Red1 {[%emt 0:03:04]} dxc3 {[%emt 0:13:07]} 18. Rxd8 {[%emt 0:02:21]} Rfxd8 {[%emt 0:00:18]} 19. Bxc3 {[%emt 0:10:40]} Nxa2 {[%emt 0:00:44]} 20. Ng4 {[%emt 0:00:56]} Nxc1 {[%emt 0:10:32]} 21. Nxf6+ {[%emt 0:00:47]} gxf6 {[%emt 0:00:07]} 22. Qg4+ {[%emt 0:04:34]} Kf8 {[%emt 0:00:24]} 23. Bf3 {[%emt 0:06:26]} Be7 {[%emt 0:01:41]} 24. Bb4 {[%emt 0:04:15]} Nd3 {[%emt 0:01:45]} 25. Bxe7+ {[%emt 0:01:00]} Kxe7 {[%emt 0:00:06]} 26. Qe4+ {[%emt 0:05:11]} Kf8 {[%emt 0:02:22]} 27. Bh5 {[%emt 0:01:26]} Ne5 {[%emt 0:05:47]} 28. Qb4+ {[%emt 0:07:21]} Kg7 29. Qa3 {[%emt 0:00:35]} Bb5 {[%emt 0:03:09]} 30. f4 {[%emt 0:01:01]} Nd3 {[%emt 0:01:05]} 31. Qxa7 {[%emt 0:00:42]} Rc1+ {[%emt 0:02:46]} 32. Kg2 {[%emt 0:00:10]} Ne1+ {[%emt 0:00:42]} 33. Kh3 {[%emt 0:07:35]} Bf1+ {[%emt 0:00:12]} 34. Kh4 {[%emt 0:00:32]} Ng2+ {[%emt 0:00:19]} 35. Kh3 {[%emt 0:04:11]} Nxe3+ {[%emt 0:01:24]} 36. Kh4 {[%emt 0:00:07]} Ng2+ {[%emt 0:02:44]} 37. Kh3 {[%emt 0:00:27]} Nxf4+ {[%emt 0:00:33]} 38. Kh4 {[%emt 0:02:12]} Nxh5 {[%emt 0:01:09]} 39. Qxb6 {[%emt 0:01:47]} Rd2 {[%emt 0:00:45]} 40. Kxh5 {[%emt 0:02:00]} Rxh2+ {[%emt 0:00:28]} 41. Kg4 {[%emt 0:30:07]} Be2+ {[%emt 0:31:20]} 42. Kf4 {[%emt 0:01:58]} Rf1+ {[%emt 0:00:27]} 43. Ke4 {[%emt 0:01:04]} Bf3+ {[%emt 0:00:13]} 44. Kd3 {[%emt 0:01:29]} Bg4 {[%emt 0:00:00]} 45. Qb8 {[%emt 0:00:00]} Rf3+ {[%emt 0:00:00]} 46. Ke4 {[%emt 0:00:00]} Re2+ {[%emt 0:00:00]} 47. Kd4 {[%emt 0:00:00]} Ree3 {[%emt 0:00:00]} 48. b4 {[%emt 0:00:00]} Rd3+ {[%emt 0:00:00]} 49. Kc5 {[%emt 0:00:00]} Rxg3 {[%emt 0:00:00]} 50. b5 {[%emt 0:00:00]} Rc3+ {[%emt 0:00:00]} 51. Kb4 {[%emt 0:00:00]} Rb3+ {[%emt 0:00:00]} 52. Kc5 {[%emt 0:00:00]} Bh3 {[%emt 0:00:00]} 53. b6 {[%emt 0:00:00]} Bg2 {[%emt 0:00:00]} 54. Kc4 {[%emt 0:00:00]} Rbe3 {[%emt 0:00:00]} 55. b7 {[%emt 0:00:00]} Rg4+ {[%emt 0:00:00]} 56. Kc5 {[%emt 0:00:00]} Rc3+ {[%emt 0:00:00]} 57. Kb5 {[%emt 0:00:00]} Rb3+ {[%emt 0:00:00]} 58. Ka5 {[%emt 0:00:00]} Rxb7 {[%emt 0:00:00]} 59. Qd6 {[%emt 0:00:00]} Rbb4 {[%emt 0:00:00]} 60. Qd2 {[%emt 0:00:00]} h5 {[%emt 0:00:00]} 61. Qd6 {[%emt 0:00:00]} h4 {[%emt 0:00:00]} 62. Qh2 {[%emt 0:00:00]} h3 {[%emt 0:00:00]} 63. Qd6 {[%emt 0:00:00]} Rbf4 {[%emt 0:00:00]} 0-1

[Event "Schachfestival Open-A 2018"]
[Site "Lueneburg"]
[Date "2018.07.10"]
[Round "6"]
[White "Matzat, Andre"]
[Black "Genov, Petar"]
[Result "0-1"]
[ECO "D00"]
[WhiteElo "2081"]
[BlackElo "2435"]
[Annotator "NA"]
[PlyCount "68"]
[EventDate "2018.07.06"]
[EventType "swiss"]
[EventCountry "GER"]
[SourceTitle "playchess.com"]
[Source "ChessBase"]
[SourceQuality "1"]
[TimeControl "40/5400+30:1800+30"]

1. d4 {[%emt 0:00:46]} d5 {[%emt 0:09:07]} 2. Bf4 {[%emt 0:00:24]} Nf6 {[%emt 0:01:02]} 3. e3 {[%emt 0:00:08]} e6 {[%emt 0:00:54]} 4. Nd2 {[%emt 0:00:52]} b6 {[%emt 0:18:39]} 5. Ngf3 {[%emt 0:02:12]} Bb7 {[%emt 0:03:11]} 6. Ne5 {[%emt 0:02:10]} Nbd7 {[%emt 0:03:54]} 7. Bd3 {[%emt 0:10:18]} Bd6 {[%emt 0:17:57]} 8. Qf3 {[%emt 0:00:51]} Qe7 {[%emt 0:00:31]} 9. c3 {[%emt 0:01:36]} h6 {[%emt 0:01:50]} 10. h4 {[%emt 0:01:28]} Bxe5 {[%emt 0:08:35]} 11. dxe5 {[%emt 0:17:47]} Nc5 {[%emt 0:00:41]} 12. Bb5+ {[%emt 0:01:04]} Nfd7 {[%emt 0:00:13]} 13. Nb3 {[%emt 0:05:24]} O-O-O {[%emt 0:04:57]} 14. Nd4 {[%emt 0:07:04]} a6 {[%emt 0:05:35]} 15. Be2 {[%emt 0:06:55]} f6 {[%emt 0:00:33]} 16. exf6 {[%emt 0:01:50]} gxf6 {[%emt 0:06:30]} 17. Qh3 {[%emt 0:00:21]} e5 {[%emt 0:01:00]} 18. Nf5 {[%emt 0:00:20]} Qf8 {[%emt 0:00:20]} 19. Bh2 {[%emt 0:01:18]} Kb8 {[%emt 0:01:40]} 20. h5 {[%emt 0:05:36]} Ne4 {[%emt 0:02:01]} 21. Qh4 {[%emt 0:05:47]} Rg8 {[%emt 0:02:25]} 22. Rg1 {[%emt 0:02:12]} Ndc5 {[%emt 0:01:35]} 23. O-O-O {[%emt 0:02:15]} Bc8 {[%emt 0:00:57]} 24. g4 {[%emt 0:00:28]} Na4 {[%emt 0:01:01]} 25. Kc2 {[%emt 0:07:53]} Nexc3 {[%emt 0:03:28]} 26. bxc3 {[%emt 0:02:43]} Qa3 {[%emt 0:00:05]} 27. Rb1 {[%emt 0:00:51]} Bxf5+ {[%emt 0:02:46]} 28. gxf5 {[%emt 0:00:09]} Rxg1 {[%emt 0:00:32]} 29. Bxg1 {[%emt 0:01:02]} Qxc3+ {[%emt 0:01:33]} 30. Kd1 {[%emt 0:00:37]} d4 {[%emt 0:00:05]} 31. Qxf6 {[%emt 0:00:39]} Rd6 {[%emt 0:00:13]} 32. Qf8+ {[%emt 0:01:58]} Ka7 {[%emt 0:00:01]} 33. Bf3 {[%emt 0:01:32]} dxe3+ {[%emt 0:01:38]} 34. Ke2 {[%emt 0:00:09]} Qd3+ {[%emt 0:00:18]} 0-1

[Event "Schachfestival Open-A 2018"]
[Site "Lueneburg"]
[Date "2018.07.10"]
[Round "6"]
[White "Bosselmann, Tom Linus"]
[Black "Boehm, Juergen"]
[Result "1/2-1/2"]
[ECO "C34"]
[WhiteElo "2036"]
[BlackElo "2233"]
[Annotator "NA"]
[PlyCount "42"]
[EventDate "2018.07.06"]
[EventType "swiss"]
[EventCountry "GER"]
[SourceTitle "playchess.com"]
[Source "ChessBase"]
[SourceQuality "1"]
[TimeControl "40/5400+30:1800+30"]

1. e4 {[%emt 0:00:00]} e5 {[%emt 0:00:00]} 2. f4 {[%emt 0:00:00]} exf4 {[%emt 0:02:17]} 3. Nf3 {[%emt 0:00:00]} Nf6 {[%emt 0:00:52]} 4. e5 {[%emt 0:00:59]} Nh5 {[%emt 0:02:51]} 5. Bc4 {[%emt 0:01:02]} g6 {[%emt 0:05:39]} 6. O-O {[%emt 0:01:08]} Bg7 {[%emt 0:00:33]} 7. d4 {[%emt 0:00:16]} O-O {[%emt 0:01:01]} 8. Nc3 {[%emt 0:03:24]} d6 {[%emt 0:02:00]} 9. exd6 {[%emt 0:02:15]} cxd6 {[%emt 0:00:35]} 10. Ne2 {[%emt 0:01:06]} Be6 {[%emt 0:14:47]} 11. Bd3 {[%emt 0:02:17]} Nc6 {[%emt 0:12:19]} 12. c3 {[%emt 0:00:30]} Qb6 {[%emt 0:05:37]} 13. Kh1 {[%emt 0:08:56]} Bg4 {[%emt 0:05:43]} 14. Rb1 {[%emt 0:02:52]} Ne7 {[%emt 0:05:52]} 15. Nxf4 {[%emt 0:02:15]} Nxf4 {[%emt 0:00:21]} 16. Bxf4 {[%emt 0:00:02]} Nd5 {[%emt 0:00:44]} 17. Bd2 {[%emt 0:09:08]} Rae8 {[%emt 0:00:29]} 18. h3 {[%emt 0:02:35]} Bd7 {[%emt 0:04:42]} 19. Bc4 {[%emt 0:03:45]} Be6 {[%emt 0:06:40]} 20. Bd3 {[%emt 0:03:42]} Bd7 {[%emt 0:01:03]} 21. Bc4 {[%emt 0:01:10]} Be6 1/2-1/2

[Event "Schachfestival Open-A 2018"]
[Site "Lueneburg"]
[Date "2018.07.10"]
[Round "6"]
[White "Haerig, Wilfried"]
[Black "Bente, Bjoern"]
[Result "1/2-1/2"]
[ECO "B06"]
[WhiteElo "2022"]
[BlackElo "2219"]
[Annotator "NA"]
[PlyCount "37"]
[EventDate "2018.07.06"]
[EventType "swiss"]
[EventCountry "GER"]
[SourceTitle "playchess.com"]
[Source "ChessBase"]
[SourceQuality "1"]
[TimeControl "40/5400+30:1800+30"]

1. e4 {[%emt 0:00:00]} g6 {[%emt 0:00:00]} 2. d4 {[%emt 0:00:27]} Bg7 {[%emt 0:00:00]} 3. Nc3 {[%emt 0:01:20]} c6 {[%emt 0:00:00]} 4. Nf3 {[%emt 0:05:20]} d6 {[%emt 0:00:01]} 5. h3 {[%emt 0:02:25]} Nf6 {[%emt 0:00:07]} 6. Bg5 {[%emt 0:00:34]} O-O {[%emt 0:00:50]} 7. e5 {[%emt 0:02:28]} dxe5 {[%emt 0:01:54]} 8. dxe5 {[%emt 0:00:25]} Nd5 {[%emt 0:00:37]} 9. Qd2 {[%emt 0:06:56]} Nxc3 {[%emt 0:01:19]} 10. Qxc3 {[%emt 0:00:26]} Be6 {[%emt 0:04:53]} 11. Bc4 {[%emt 0:08:55]} Bxc4 {[%emt 0:03:37]} 12. Qxc4 {[%emt 0:00:06]} Qa5+ {[%emt 0:00:14]} 13. Bd2 {[%emt 0:00:14]} Qd5 {[%emt 0:01:37]} 14. Qe2 {[%emt 0:08:46]} Nd7 {[%emt 0:02:47]} 15. c4 {[%emt 0:04:03]} Qe6 {[%emt 0:01:42]} 16. Bc3 {[%emt 0:00:38]} f6 {[%emt 0:03:44]} 17. exf6 {[%emt 0:12:08]} Qxe2+ {[%emt 0:00:34]} 18. Kxe2 {[%emt 0:00:05]} exf6 {[%emt 0:00:07]} 19. Rhe1 {[%emt 0:06:07]} 1/2-1/2

[Event "Schachfestival Open-A 2018"]
[Site "Lueneburg"]
[Date "2018.07.10"]
[Round "6"]
[White "Popvasilev, Kaloyan"]
[Black "Weishaeutel, Moritz"]
[Result "1-0"]
[ECO "B00"]
[WhiteElo "2020"]
[BlackElo "2236"]
[Annotator "NA"]
[PlyCount "99"]
[EventDate "2018.07.06"]
[EventType "swiss"]
[EventCountry "GER"]
[SourceTitle "playchess.com"]
[Source "ChessBase"]
[SourceQuality "1"]
[TimeControl "40/5400+30:1800+30"]

1. e4 {[%emt 0:00:00]} d6 {[%emt 0:00:27]} 2. d4 {[%emt 0:00:15]} g6 {[%emt 0:00:18]} 3. Be3 {[%emt 0:05:36]} Bg7 {[%emt 0:00:49]} 4. Nc3 {[%emt 0:00:42]} a6 {[%emt 0:02:47]} 5. Qd2 {[%emt 0:02:49]} Nd7 {[%emt 0:02:58]} 6. h4 {[%emt 0:04:00]} Ngf6 {[%emt 0:07:07]} 7. f3 {[%emt 0:00:09]} h5 {[%emt 0:02:09]} 8. Nh3 {[%emt 0:01:59]} b5 {[%emt 0:02:34]} 9. a4 {[%emt 0:11:17]} b4 {[%emt 0:06:05]} 10. Nd1 {[%emt 0:05:27]} c5 {[%emt 0:05:11]} 11. dxc5 {[%emt 0:06:36]} dxc5 {[%emt 0:02:33]} 12. e5 {[%emt 0:04:28]} Ng8 {[%emt 0:11:56]} 13. e6 {[%emt 0:03:39]} fxe6 {[%emt 0:00:29]} 14. Ng5 {[%emt 0:04:40]} Qb6 {[%emt 0:01:09]} 15. a5 {[%emt 0:00:34]} Qc6 {[%emt 0:04:49]} 16. Bd3 {[%emt 0:02:01]} Ngf6 {[%emt 0:08:07]} 17. Bxg6+ {[%emt 0:00:29]} Kd8 {[%emt 0:01:12]} 18. Bf7 {[%emt 0:01:49]} Bb7 {[%emt 0:03:57]} 19. Bxe6 {[%emt 0:20:04]} Kc8 {[%emt 0:03:20]} 20. c4 {[%emt 0:06:01]} Kb8 {[%emt 0:04:19]} 21. Nf2 {[%emt 0:03:31]} Rd8 {[%emt 0:03:17]} 22. Bf5 {[%emt 0:01:28]} Bh6 {[%emt 0:02:55]} 23. Nfh3 {[%emt 0:03:39]} Ka7 {[%emt 0:19:58]} 24. Ne6 {[%emt 0:03:00]} Bxe3 {[%emt 0:00:04]} 25. Qxe3 {[%emt 0:00:03]} Rg8 {[%emt 0:00:11]} 26. Nhf4 {[%emt 0:02:00]} Ne8 {[%emt 0:03:26]} 27. Be4 {[%emt 0:03:42]} Qc8 {[%emt 0:00:01]} 28. Bxb7 {[%emt 0:01:38]} Kxb7 {[%emt 0:00:01]} 29. Qe4+ {[%emt 0:01:37]} Qc6 {[%emt 0:00:50]} 30. Qxc6+ {[%emt 0:00:38]} Kxc6 {[%emt 0:00:01]} 31. Kf2 {[%emt 0:00:21]} Nd6 {[%emt 0:00:29]} 32. b3 {[%emt 0:00:10]} Nf6 {[%emt 0:00:16]} 33. Rhe1 {[%emt 0:00:17]} Nf5 {[%emt 0:00:15]} 34. Re5 {[%emt 0:00:38]} Nxh4 {[%emt 0:01:21]} 35. Rxc5+ {[%emt 0:00:03]} Kb7 {[%emt 0:00:12]} 36. Rc7+ {[%emt 0:00:46]} Kb8 {[%emt 0:00:01]} 37. Rxe7 {[%emt 0:00:10]} Ra7 {[%emt 0:01:40]} 38. Rxa7 {[%emt 0:00:05]} Kxa7 {[%emt 0:00:01]} 39. Rh1 {[%emt 0:00:19]} Nf5 {[%emt 0:00:17]} 40. Nxh5 {[%emt 0:00:59]} Rh8 {[%emt 0:00:52]} 41. g4 {[%emt 0:30:03]} Ne7 {[%emt 0:30:06]} 42. Kg2 {[%emt 0:02:00]} Nd7 {[%emt 0:00:00]} 43. Nhf4 {[%emt 0:00:00]} Rxh1 {[%emt 0:00:00]} 44. Kxh1 {[%emt 0:00:00]} Nc6 {[%emt 0:00:00]} 45. g5 {[%emt 0:00:00]} Nxa5 {[%emt 0:00:00]} 46. Nd5 {[%emt 0:00:00]} Nxb3 {[%emt 0:00:00]} 47. g6 {[%emt 0:00:00]} Nd2 {[%emt 0:00:00]} 48. g7 {[%emt 0:00:00]} b3 {[%emt 0:00:00]} 49. g8=Q {[%emt 0:00:00]} b2 {[%emt 0:00:00]} 50. Nc3 {[%emt 0:00:00]} 1-0